[Event "Titled Tuesday Blitz April 12 Early 2022"]
[White "Nakamura, Hikaru"]
[Black "Sjugirov, Sanan"]
[WhiteFideId "2016192"]
[BlackFideId "4189302"]
[WhiteElo "2850"]
[BlackElo "2602"]
[Result "0-1"]
[Round "04"]
[TimeControl "180+1"]
[Date "2022.04.12"]
[WhiteClock "0:00:51"]
[BlackClock "0:00:07"]

1. Nf3 {[%clk 0:03:00]}  d5 {[%clk 0:02:58]} 2. b3 {[%clk 0:02:57]}  Bf5 {[%clk 0:02:50]} 3. Bb2 {[%clk 0:02:56]}  e6 {[%clk 0:02:50]} 4. g3 {[%clk 0:02:53]}  Nf6 {[%clk 0:02:50]} 5. d3 {[%clk 0:02:53]}  h6 {[%clk 0:02:51]} 6. Nbd2 {[%clk 0:02:52]}  Bh7 {[%clk 0:02:50]} 7. Ne5 {[%clk 0:02:53]}  Be7 {[%clk 0:02:49]} 8. Bg2 {[%clk 0:02:53]}  Nbd7 {[%clk 0:02:49]} 9. Nxd7 {[%clk 0:02:53]}  Qxd7 {[%clk 0:02:49]} 10. O-O {[%clk 0:02:53]}  O-O {[%clk 0:02:49]} 11. Re1 {[%clk 0:02:52]}  c6 {[%clk 0:02:46]} 12. e4 {[%clk 0:02:52]}  Qc7 {[%clk 0:02:42]} 13. Qe2 {[%clk 0:02:51]}  a5 {[%clk 0:02:40]} 14. a3 {[%clk 0:02:51]}  Rfe8 {[%clk 0:02:36]} 15. Nf1 {[%clk 0:02:43]}  Rad8 {[%clk 0:02:25]} 16. e5 {[%clk 0:02:39]}  Nd7 {[%clk 0:02:25]} 17. a4 {[%clk 0:02:37]}  c5 {[%clk 0:02:15]} 18. Ne3 {[%clk 0:02:18]}  Nb8 {[%clk 0:01:52]} 19. f4 {[%clk 0:02:07]}  Nc6 {[%clk 0:01:51]} 20. Rad1 {[%clk 0:02:07]}  Nd4 {[%clk 0:01:22]} 21. Qf2 {[%clk 0:02:05]}  Nf5 {[%clk 0:01:23]} 22. c4 {[%clk 0:01:59]}  Nxe3 {[%clk 0:01:20]} 23. Qxe3 {[%clk 0:01:59]}  Qb6 {[%clk 0:00:57]} 24. cxd5 {[%clk 0:01:53]}  Qxb3 {[%clk 0:00:53]} 25. Ba1 {[%clk 0:01:40]}  exd5 {[%clk 0:00:51]} 26. d4 {[%clk 0:01:40]}  Qxe3+ {[%clk 0:00:48]} 27. Rxe3 {[%clk 0:01:39]}  c4 {[%clk 0:00:44]} 28. Bc3 {[%clk 0:01:37]}  b6 {[%clk 0:00:38]} 29. Ra1 {[%clk 0:01:33]}  Bb4 {[%clk 0:00:35]} 30. Bf1 {[%clk 0:01:31]}  Rb8 {[%clk 0:00:30]} 31. Ra2 {[%clk 0:01:27]}  b5 {[%clk 0:00:28]} 32. axb5 {[%clk 0:01:26]}  Rxb5 {[%clk 0:00:29]} 33. g4 {[%clk 0:01:23]}  Be4 {[%clk 0:00:15]} 34. Ba1 {[%clk 0:01:10]}  Rc8 {[%clk 0:00:13]} 35. f5 {[%clk 0:01:10]}  Be7 {[%clk 0:00:12]} 36. Bc3 {[%clk 0:01:10]}  Rb1 {[%clk 0:00:10]} 37. Rxa5 {[%clk 0:01:06]}  Bg5 {[%clk 0:00:09]} 38. Re1 {[%clk 0:01:06]}  Rxe1 {[%clk 0:00:07]} 39. Bxe1 {[%clk 0:01:06]}  c3 {[%clk 0:00:07]} 40. Bxc3 {[%clk 0:00:51]}  Be3# {[%clk 0:00:07]} 0-1


[Site "https://www.chess.com"]

[Event "Titled Tuesday Blitz April 12 Early 2022"]
[White "Namitbir Singh Walia"]
[Black "Djokic, Mihailo"]
[WhiteFideId "35071068"]
[BlackFideId "976440"]
[WhiteElo "1565"]
[BlackElo "2202"]
[Result "1-0"]
[Round "04"]
[TimeControl "180+1"]
[Date "2022.04.13"]
[WhiteClock "0:00:05"]
[BlackClock "0:00:03"]

1. d4 {[%clk 0:03:00]}  d5 {[%clk 0:02:50]} 2. c4 {[%clk 0:03:00]}  e6 {[%clk 0:02:35]} 3. g3 {[%clk 0:03:00]}  dxc4 {[%clk 0:02:13]} 4. Nf3 {[%clk 0:02:54]}  Nf6 {[%clk 0:02:05]} 5. Bg2 {[%clk 0:02:51]}  Be7 {[%clk 0:01:44]} 6. O-O {[%clk 0:02:49]}  O-O {[%clk 0:01:32]} 7. Qc2 {[%clk 0:02:27]}  c5 {[%clk 0:01:14]} 8. dxc5 {[%clk 0:02:00]}  Bxc5 {[%clk 0:01:01]} 9. Qxc4 {[%clk 0:01:57]}  Be7 {[%clk 0:00:26]} 10. Nc3 {[%clk 0:01:55]}  Nc6 {[%clk 0:00:25]} 11. Rd1 {[%clk 0:01:54]}  Qa5 {[%clk 0:00:21]} 12. Bd2 {[%clk 0:01:43]}  Qh5 {[%clk 0:00:15]} 13. Rac1 {[%clk 0:01:34]}  Nd7 {[%clk 0:00:13]} 14. Be3 {[%clk 0:01:11]}  Nde5 {[%clk 0:00:12]} 15. Nxe5 {[%clk 0:01:10]}  Nxe5 {[%clk 0:00:11]} 16. Qb5 {[%clk 0:01:02]}  g6 {[%clk 0:00:06]} 17. Bf4 {[%clk 0:00:49]}  Ng4 {[%clk 0:00:04]} 18. Qxh5 {[%clk 0:00:47]}  gxh5 {[%clk 0:00:05]} 19. Ne4 {[%clk 0:00:45]}  f5 {[%clk 0:00:04]} 20. Nd6 {[%clk 0:00:41]}  e5 {[%clk 0:00:04]} 21. Be3 {[%clk 0:00:16]}  Be6 {[%clk 0:00:04]} 22. Nxb7 {[%clk 0:00:14]}  Rab8 {[%clk 0:00:04]} 23. Nc5 {[%clk 0:00:14]}  Bxa2 {[%clk 0:00:04]} 24. Ra1 {[%clk 0:00:10]}  Nxe3 {[%clk 0:00:04]} 25. fxe3 {[%clk 0:00:10]}  Bxc5 {[%clk 0:00:04]} 26. Rxa2 {[%clk 0:00:11]}  Bxe3+ {[%clk 0:00:04]} 27. Kh1 {[%clk 0:00:11]}  Rfd8 {[%clk 0:00:04]} 28. Bd5+ {[%clk 0:00:11]}  Kg7 {[%clk 0:00:04]} 29. Ra3 {[%clk 0:00:11]}  Bd4 {[%clk 0:00:03]} 30. e4 {[%clk 0:00:09]}  Rxb2 {[%clk 0:00:03]} 31. Rf3 {[%clk 0:00:08]}  f4 {[%clk 0:00:03]} 32. gxf4 {[%clk 0:00:08]}  Rf8 {[%clk 0:00:03]} 33. f5 {[%clk 0:00:08]}  Kf6 {[%clk 0:00:03]} 34. Rg3 {[%clk 0:00:07]}  Rc8 {[%clk 0:00:03]} 35. Rg2 {[%clk 0:00:06]}  Rxg2 {[%clk 0:00:02]} 36. Kxg2 {[%clk 0:00:07]}  Rc2+ {[%clk 0:00:03]} 37. Kh3 {[%clk 0:00:08]}  Be3 {[%clk 0:00:04]} 38. Rb1 {[%clk 0:00:08]}  Bf4 {[%clk 0:00:04]} 39. Rh1 {[%clk 0:00:07]}  a5 {[%clk 0:00:03]} 40. Kh4 {[%clk 0:00:06]}  Bxh2 {[%clk 0:00:02]} 41. Kxh5 {[%clk 0:00:06]}  Bf4 {[%clk 0:00:03]} 42. Rb1 {[%clk 0:00:05]}  Rh2+ {[%clk 0:00:03]} 43. Kg4 {[%clk 0:00:05]}  Rg2+ {[%clk 0:00:03]} 44. Kf3 {[%clk 0:00:05]}  Rg3+ {[%clk 0:00:03]} 45. Kf2 {[%clk 0:00:06]}  Ra3 {[%clk 0:00:02]} 46. Rb6+ {[%clk 0:00:06]}  Kg5 {[%clk 0:00:03]} 47. Rb7 {[%clk 0:00:06]}  Be3+ {[%clk 0:00:03]} 48. Kg2 {[%clk 0:00:05]}  Bd4 {[%clk 0:00:03]} 49. Rxh7 {[%clk 0:00:05]}  Kf4 {[%clk 0:00:04]} 50. Rh4+ {[%clk 0:00:04]}  Kg5 {[%clk 0:00:04]} 51. Rh8 {[%clk 0:00:04]}  Kf4 {[%clk 0:00:05]} 52. Rg8 {[%clk 0:00:04]}  Rc3 {[%clk 0:00:04]} 53. f6 {[%clk 0:00:03]}  Rc2+ {[%clk 0:00:04]} 54. Kh3 {[%clk 0:00:03]}  Rc3+ {[%clk 0:00:03]} 55. Kg2 {[%clk 0:00:02]}  Rc2+ {[%clk 0:00:03]} 56. Kh3 {[%clk 0:00:02]}  Ke3 {[%clk 0:00:03]} 57. f7 {[%clk 0:00:02]}  Bc5 {[%clk 0:00:04]} 58. f8=Q {[%clk 0:00:03]}  Bxf8 {[%clk 0:00:03]} 59. Rxf8 {[%clk 0:00:03]}  a4 {[%clk 0:00:03]} 60. Ra8 {[%clk 0:00:04]}  Rc3 {[%clk 0:00:02]} 61. Kh4 {[%clk 0:00:04]}  a3 {[%clk 0:00:01]} 62. Kg5 {[%clk 0:00:03]}  Kd4 {[%clk 0:00:02]} 63. Kf5 {[%clk 0:00:03]}  Rf3+ {[%clk 0:00:02]} 64. Ke6 {[%clk 0:00:04]}  Rc3 {[%clk 0:00:03]} 65. Ra4+ {[%clk 0:00:04]}  Ke3 {[%clk 0:00:03]} 66. Kxe5 {[%clk 0:00:04]}  Rd3 {[%clk 0:00:03]} 67. Kf5 {[%clk 0:00:04]}  Kf3 {[%clk 0:00:03]} 68. Ke5 {[%clk 0:00:04]}  Kg4 {[%clk 0:00:03]} 69. Rb4 {[%clk 0:00:04]}  Rd2 {[%clk 0:00:03]} 70. Ke6 {[%clk 0:00:04]}  a2 {[%clk 0:00:03]} 71. Ra4 {[%clk 0:00:04]}  a1=Q {[%clk 0:00:02]} 72. Rxa1 {[%clk 0:00:04]}  Kg5 {[%clk 0:00:03]} 73. e5 {[%clk 0:00:04]}  Rb2 {[%clk 0:00:03]} 74. Rg1+ {[%clk 0:00:04]}  Kf4 {[%clk 0:00:03]} 75. Rf1+ {[%clk 0:00:03]}  Ke3 {[%clk 0:00:03]} 76. Kd6 {[%clk 0:00:04]}  Kd4 {[%clk 0:00:02]} 77. e6 {[%clk 0:00:03]}  Rb6+ {[%clk 0:00:02]} 78. Bc6 {[%clk 0:00:04]}  Rb4 {[%clk 0:00:02]} 79. Rf4+ {[%clk 0:00:03]}  Kc3 {[%clk 0:00:02]} 80. Rxb4 {[%clk 0:00:04]}  Kxb4 {[%clk 0:00:03]} 81. e7 {[%clk 0:00:05]} 1-0


[Site "https://www.chess.com"]

[Event "Titled Tuesday Blitz April 12 Early 2022"]
[White "Narayanan.S.L"]
[Black "Obolenskikh, Dmitry"]
[WhiteFideId "5058422"]
[BlackFideId "4156013"]
[WhiteElo "2494"]
[BlackElo "2512"]
[Result "1-0"]
[Round "04"]
[TimeControl "180+1"]
[Date "2022.04.12"]
[WhiteClock "0:01:43"]
[BlackClock "0:00:59"]

1. b3 {[%clk 0:03:00]}  d5 {[%clk 0:02:58]} 2. Bb2 {[%clk 0:03:01]}  Bg4 {[%clk 0:02:58]} 3. f3 {[%clk 0:03:00]}  Bf5 {[%clk 0:02:55]} 4. e3 {[%clk 0:02:59]}  Nd7 {[%clk 0:02:54]} 5. Nc3 {[%clk 0:02:59]}  c6 {[%clk 0:02:53]} 6. e4 {[%clk 0:03:00]}  Be6 {[%clk 0:02:47]} 7. Nge2 {[%clk 0:02:58]}  Nb6 {[%clk 0:02:43]} 8. Nf4 {[%clk 0:02:50]}  Bc8 {[%clk 0:02:43]} 9. d4 {[%clk 0:02:50]}  e6 {[%clk 0:02:37]} 10. Qd2 {[%clk 0:02:50]}  Nf6 {[%clk 0:02:35]} 11. O-O-O {[%clk 0:02:49]}  a5 {[%clk 0:02:35]} 12. a3 {[%clk 0:02:48]}  g6 {[%clk 0:02:30]} 13. Kb1 {[%clk 0:02:47]}  h5 {[%clk 0:02:26]} 14. Qe1 {[%clk 0:02:43]}  Bh6 {[%clk 0:02:25]} 15. Nd3 {[%clk 0:02:43]}  Bg7 {[%clk 0:02:22]} 16. Nc5 {[%clk 0:02:39]}  Nfd7 {[%clk 0:02:18]} 17. exd5 {[%clk 0:02:35]}  cxd5 {[%clk 0:02:03]} 18. Nxe6 {[%clk 0:02:34]}  fxe6 {[%clk 0:02:01]} 19. Qxe6+ {[%clk 0:02:34]}  Qe7 {[%clk 0:01:54]} 20. Qxg6+ {[%clk 0:02:34]}  Kf8 {[%clk 0:01:46]} 21. Bb5 {[%clk 0:02:32]}  Qf6 {[%clk 0:01:41]} 22. Qd3 {[%clk 0:02:29]}  Kg8 {[%clk 0:01:37]} 23. Rhe1 {[%clk 0:02:29]}  Nf8 {[%clk 0:01:37]} 24. Re5 {[%clk 0:01:54]}  Qf7 {[%clk 0:01:34]} 25. Nxd5 {[%clk 0:01:47]}  Nxd5 {[%clk 0:01:05]} 26. Rxd5 {[%clk 0:01:47]}  Be6 {[%clk 0:01:05]} 27. Rg5 {[%clk 0:01:44]}  Rh6 {[%clk 0:00:59]} 28. d5 {[%clk 0:01:43]} 1-0


[Site "https://www.chess.com"]

[Event "Titled Tuesday Blitz April 12 Early 2022"]
[White "Narayanan, Srinath"]
[Black "Yurovskykh, Oleksandr"]
[WhiteFideId "5018420"]
[BlackFideId "14134020"]
[WhiteElo "2472"]
[BlackElo "2292"]
[Result "1-0"]
[Round "04"]
[TimeControl "180+1"]
[Date "2022.04.13"]
[WhiteClock "0:00:09"]
[BlackClock "0:00:15"]

1. Nf3 {[%clk 0:03:00]}  d5 {[%clk 0:02:53]} 2. e3 {[%clk 0:02:59]}  Nf6 {[%clk 0:02:52]} 3. c4 {[%clk 0:03:00]}  c6 {[%clk 0:02:50]} 4. b3 {[%clk 0:03:00]}  Bg4 {[%clk 0:02:49]} 5. Bb2 {[%clk 0:03:01]}  e6 {[%clk 0:02:49]} 6. Nc3 {[%clk 0:03:00]}  Nbd7 {[%clk 0:02:49]} 7. h3 {[%clk 0:03:00]}  Bh5 {[%clk 0:02:49]} 8. g4 {[%clk 0:03:01]}  Bg6 {[%clk 0:02:49]} 9. Nh4 {[%clk 0:03:01]}  Be4 {[%clk 0:02:31]} 10. Nxe4 {[%clk 0:02:57]}  Nxe4 {[%clk 0:02:29]} 11. Nf3 {[%clk 0:02:58]}  f6 {[%clk 0:02:17]} 12. Qc2 {[%clk 0:02:54]}  Bd6 {[%clk 0:02:12]} 13. Bg2 {[%clk 0:02:24]}  O-O {[%clk 0:02:05]} 14. Nd4 {[%clk 0:02:23]}  Qe7 {[%clk 0:01:37]} 15. Bxe4 {[%clk 0:02:11]}  dxe4 {[%clk 0:01:38]} 16. Qxe4 {[%clk 0:02:11]}  Nc5 {[%clk 0:01:38]} 17. Qc2 {[%clk 0:02:11]}  Rfd8 {[%clk 0:01:31]} 18. f4 {[%clk 0:02:02]}  Qe8 {[%clk 0:01:21]} 19. O-O-O {[%clk 0:02:00]}  e5 {[%clk 0:01:21]} 20. fxe5 {[%clk 0:01:51]}  Bxe5 {[%clk 0:01:22]} 21. Kb1 {[%clk 0:01:42]}  Ne6 {[%clk 0:01:16]} 22. Nf5 {[%clk 0:01:42]}  Bxb2 {[%clk 0:01:15]} 23. Qxb2 {[%clk 0:01:43]}  Nc5 {[%clk 0:01:13]} 24. d4 {[%clk 0:01:38]}  Ne4 {[%clk 0:01:12]} 25. Rhf1 {[%clk 0:01:27]}  g6 {[%clk 0:01:10]} 26. Nh4 {[%clk 0:01:24]}  Kg7 {[%clk 0:01:11]} 27. Ng2 {[%clk 0:01:23]}  Qe7 {[%clk 0:01:05]} 28. Nf4 {[%clk 0:01:22]}  Re8 {[%clk 0:01:04]} 29. d5 {[%clk 0:01:22]}  Nc5 {[%clk 0:00:56]} 30. g5 {[%clk 0:01:16]}  Rf8 {[%clk 0:00:30]} 31. gxf6+ {[%clk 0:00:56]}  Rxf6 {[%clk 0:00:28]} 32. Ne6+ {[%clk 0:00:41]}  Nxe6 {[%clk 0:00:25]} 33. dxe6 {[%clk 0:00:42]}  Rd8 {[%clk 0:00:17]} 34. Rd7 {[%clk 0:00:24]}  Kh6 {[%clk 0:00:15]} 35. Qxf6 {[%clk 0:00:11]}  Rxd7 {[%clk 0:00:15]} 36. exd7 {[%clk 0:00:10]}  Qxd7 {[%clk 0:00:16]} 37. Qf4+ {[%clk 0:00:09]}  Kg7 {[%clk 0:00:15]} 38. Qd4+ {[%clk 0:00:09]} 1-0


[Site "https://www.chess.com"]

[Event "Titled Tuesday Blitz April 12 Early 2022"]
[White "Nilsson, Joakim"]
[Black "Biletskiy, Danylo"]
[WhiteFideId "1723383"]
[BlackFideId "14155419"]
[WhiteElo "2207"]
[BlackElo "2087"]
[Result "0-1"]
[Round "04"]
[TimeControl "180+1"]
[Date "2022.04.13"]
[WhiteClock "0:01:43"]
[BlackClock "0:02:24"]

1. d4 {[%clk 0:03:00]}  d5 {[%clk 0:02:59]} 2. Nc3 {[%clk 0:02:58]}  c6 {[%clk 0:02:59]} 3. Bf4 {[%clk 0:02:58]}  Nf6 {[%clk 0:02:59]} 4. e3 {[%clk 0:02:53]}  g6 {[%clk 0:02:59]} 5. h4 {[%clk 0:02:52]}  Bg7 {[%clk 0:02:59]} 6. Be2 {[%clk 0:02:52]}  O-O {[%clk 0:02:59]} 7. h5 {[%clk 0:02:52]}  Ne4 {[%clk 0:02:58]} 8. Nxe4 {[%clk 0:02:48]}  dxe4 {[%clk 0:02:59]} 9. c3 {[%clk 0:02:45]}  Be6 {[%clk 0:02:56]} 10. Nh3 {[%clk 0:02:44]}  f6 {[%clk 0:02:53]} 11. hxg6 {[%clk 0:02:36]}  hxg6 {[%clk 0:02:53]} 12. Bg4 {[%clk 0:02:35]}  Qd7 {[%clk 0:02:52]} 13. Bxe6+ {[%clk 0:02:29]}  Qxe6 {[%clk 0:02:53]} 14. Qb3 {[%clk 0:02:28]}  Qxb3 {[%clk 0:02:52]} 15. axb3 {[%clk 0:02:29]}  Nd7 {[%clk 0:02:50]} 16. Bg3 {[%clk 0:02:26]}  Kf7 {[%clk 0:02:47]} 17. Nf4 {[%clk 0:02:24]}  Rh8 {[%clk 0:02:46]} 18. Kd2 {[%clk 0:02:23]}  a6 {[%clk 0:02:43]} 19. b4 {[%clk 0:02:22]}  e5 {[%clk 0:02:39]} 20. Ne2 {[%clk 0:02:22]}  Rad8 {[%clk 0:02:37]} 21. Kc2 {[%clk 0:02:21]}  f5 {[%clk 0:02:37]} 22. dxe5 {[%clk 0:02:20]}  Nxe5 {[%clk 0:02:35]} 23. Nf4 {[%clk 0:02:14]}  g5 {[%clk 0:02:32]} 24. Nh5 {[%clk 0:02:12]}  Nd3 {[%clk 0:02:32]} 25. Nxg7 {[%clk 0:02:11]}  Kxg7 {[%clk 0:02:32]} 26. f3 {[%clk 0:02:02]}  Rxh1 {[%clk 0:02:31]} 27. Rxh1 {[%clk 0:02:01]}  Rh8 {[%clk 0:02:32]} 28. Rxh8 {[%clk 0:02:00]}  Kxh8 {[%clk 0:02:33]} 29. Bd6 {[%clk 0:01:58]}  Kg7 {[%clk 0:02:31]} 30. Bc5 {[%clk 0:01:58]}  g4 {[%clk 0:02:29]} 31. fxg4 {[%clk 0:01:57]}  fxg4 {[%clk 0:02:30]} 32. Bd4+ {[%clk 0:01:57]}  Kg6 {[%clk 0:02:30]} 33. Kb3 {[%clk 0:01:52]}  g3 {[%clk 0:02:27]} 34. Kc4 {[%clk 0:01:48]}  b5+ {[%clk 0:02:27]} 35. Kb3 {[%clk 0:01:47]}  Kf5 {[%clk 0:02:27]} 36. c4 {[%clk 0:01:46]}  Ne1 {[%clk 0:02:26]} 37. Bb6 {[%clk 0:01:43]}  Nxg2 {[%clk 0:02:24]} 0-1


[Site "https://www.chess.com"]

[Event "Titled Tuesday Blitz April 12 Early 2022"]
[White "Nozdrachev, Leonid"]
[Black "Roman, Rodrigo"]
[WhiteFideId "24113433"]
[BlackFideId "3701220"]
[WhiteElo "2242"]
[BlackElo "2001"]
[Result "0-1"]
[Round "04"]
[TimeControl "180+1"]
[Date "2022.04.13"]
[WhiteClock "0:00:01"]
[BlackClock "0:00:17"]

1. a3 {[%clk 0:03:00]}  b6 {[%clk 0:02:58]} 2. h4 {[%clk 0:03:00]}  Bb7 {[%clk 0:02:58]} 3. h5 {[%clk 0:02:59]}  Nf6 {[%clk 0:02:58]} 4. b4 {[%clk 0:02:57]}  h6 {[%clk 0:02:58]} 5. Bb2 {[%clk 0:02:56]}  e6 {[%clk 0:02:59]} 6. Nf3 {[%clk 0:02:45]}  d6 {[%clk 0:02:59]} 7. d3 {[%clk 0:02:42]}  Nbd7 {[%clk 0:02:59]} 8. Nbd2 {[%clk 0:02:40]}  a5 {[%clk 0:02:59]} 9. g3 {[%clk 0:02:24]}  e5 {[%clk 0:02:56]} 10. Bg2 {[%clk 0:02:23]}  Be7 {[%clk 0:02:56]} 11. Nh4 {[%clk 0:02:16]}  Bxg2 {[%clk 0:02:52]} 12. Nxg2 {[%clk 0:02:17]}  Qb8 {[%clk 0:02:48]} 13. Ne3 {[%clk 0:02:16]}  Qb7 {[%clk 0:02:47]} 14. f3 {[%clk 0:02:04]}  Nd5 {[%clk 0:02:43]} 15. Nf5 {[%clk 0:01:56]}  Bg5 {[%clk 0:02:38]} 16. Nc4 {[%clk 0:01:45]}  O-O {[%clk 0:02:17]} 17. e4 {[%clk 0:01:44]}  Ne7 {[%clk 0:02:13]} 18. f4 {[%clk 0:01:39]}  exf4 {[%clk 0:02:05]} 19. gxf4 {[%clk 0:01:34]}  Nxf5 {[%clk 0:02:05]} 20. fxg5 {[%clk 0:01:30]}  f6 {[%clk 0:01:11]} 21. Qg4 {[%clk 0:01:23]}  fxg5 {[%clk 0:01:10]} 22. O-O-O {[%clk 0:01:21]}  axb4 {[%clk 0:01:07]} 23. exf5 {[%clk 0:01:16]}  bxa3 {[%clk 0:01:08]} 24. Nxa3 {[%clk 0:01:11]}  Nf6 {[%clk 0:01:07]} 25. Bxf6 {[%clk 0:01:07]}  Rxf6 {[%clk 0:01:03]} 26. Nc4 {[%clk 0:01:01]}  Qd5 {[%clk 0:01:00]} 27. Qe4 {[%clk 0:00:53]}  Rxf5 {[%clk 0:00:49]} 28. Qxd5+ {[%clk 0:00:46]}  Rxd5 {[%clk 0:00:50]} 29. Rde1 {[%clk 0:00:45]}  Rf5 {[%clk 0:00:44]} 30. Kd2 {[%clk 0:00:43]}  Rf2+ {[%clk 0:00:36]} 31. Kc3 {[%clk 0:00:42]}  Raf8 {[%clk 0:00:36]} 32. Re7 {[%clk 0:00:40]}  R8f7 {[%clk 0:00:36]} 33. Rhe1 {[%clk 0:00:40]}  g4 {[%clk 0:00:32]} 34. Rxf7 {[%clk 0:00:28]}  Kxf7 {[%clk 0:00:33]} 35. Rg1 {[%clk 0:00:28]}  Rf5 {[%clk 0:00:30]} 36. Ne3 {[%clk 0:00:19]}  Rxh5 {[%clk 0:00:29]} 37. Rf1+ {[%clk 0:00:18]}  Kg6 {[%clk 0:00:23]} 38. Nxg4 {[%clk 0:00:18]}  Rc5+ {[%clk 0:00:23]} 39. Kd2 {[%clk 0:00:17]}  h5 {[%clk 0:00:24]} 40. Nf2 {[%clk 0:00:17]}  Rf5 {[%clk 0:00:21]} 41. Rg1+ {[%clk 0:00:17]}  Kh6 {[%clk 0:00:22]} 42. Ke3 {[%clk 0:00:14]}  g5 {[%clk 0:00:21]} 43. Ra1 {[%clk 0:00:13]}  g4 {[%clk 0:00:21]} 44. Ra7 {[%clk 0:00:12]}  Rf3+ {[%clk 0:00:21]} 45. Ke2 {[%clk 0:00:12]}  Rf7 {[%clk 0:00:21]} 46. Ne4 {[%clk 0:00:11]}  d5 {[%clk 0:00:21]} 47. Nc3 {[%clk 0:00:08]}  d4 {[%clk 0:00:18]} 48. Nd5 {[%clk 0:00:08]}  g3 {[%clk 0:00:16]} 49. Rxc7 {[%clk 0:00:07]}  g2 {[%clk 0:00:16]} 50. Rxf7 {[%clk 0:00:03]}  g1=Q {[%clk 0:00:17]} 51. Rf5 {[%clk 0:00:01]}  Qg2+ {[%clk 0:00:16]} 52. Ke1 {[%clk 0:00:01]}  Qg3+ {[%clk 0:00:16]} 53. Ke2 {[%clk 0:00:02]}  Qg4+ {[%clk 0:00:16]} 54. Rf3 {[%clk 0:00:02]}  Qe6+ {[%clk 0:00:16]} 55. Ne3 {[%clk 0:00:01]}  dxe3 {[%clk 0:00:16]} 56. Rxe3 {[%clk 0:00:02]}  Qg4+ {[%clk 0:00:16]} 57. Kf2 {[%clk 0:00:02]}  Qf4+ {[%clk 0:00:17]} 58. Rf3 {[%clk 0:00:01]}  Qd2+ {[%clk 0:00:17]} 59. Kg3 {[%clk 0:00:02]}  Qxc2 {[%clk 0:00:17]} 60. Kh4 {[%clk 0:00:02]}  Qh2+ {[%clk 0:00:17]} 61. Rh3 {[%clk 0:00:01]}  Qf4# {[%clk 0:00:17]} 0-1


[Site "https://www.chess.com"]

[Event "Titled Tuesday Blitz April 12 Early 2022"]
[White "Onslow, Alfie"]
[Black "O`Gorman, Tom"]
[WhiteFideId "436976"]
[BlackFideId "2508249"]
[WhiteElo "1884"]
[BlackElo "2247"]
[Result "1-0"]
[Round "04"]
[TimeControl "180+1"]
[Date "2022.04.13"]
[WhiteClock "0:00:15"]
[BlackClock "0:00:15"]

1. Nf3 {[%clk 0:03:00]}  g6 {[%clk 0:02:57]} 2. c4 {[%clk 0:02:54]}  Bg7 {[%clk 0:02:57]} 3. d4 {[%clk 0:02:52]}  Nf6 {[%clk 0:02:56]} 4. b3 {[%clk 0:02:52]}  O-O {[%clk 0:02:56]} 5. Bb2 {[%clk 0:02:53]}  d6 {[%clk 0:02:57]} 6. g3 {[%clk 0:02:51]}  c5 {[%clk 0:02:54]} 7. Bg2 {[%clk 0:02:39]}  Ne4 {[%clk 0:02:52]} 8. O-O {[%clk 0:02:38]}  Nc6 {[%clk 0:02:49]} 9. Nc3 {[%clk 0:02:26]}  Nxc3 {[%clk 0:02:37]} 10. Bxc3 {[%clk 0:02:27]}  cxd4 {[%clk 0:02:32]} 11. Nxd4 {[%clk 0:02:25]}  Qb6 {[%clk 0:02:32]} 12. Nxc6 {[%clk 0:02:21]}  bxc6 {[%clk 0:02:30]} 13. Bxg7 {[%clk 0:02:08]}  Kxg7 {[%clk 0:02:31]} 14. Qd3 {[%clk 0:02:08]}  Bd7 {[%clk 0:02:27]} 15. e4 {[%clk 0:02:05]}  Qc5 {[%clk 0:02:25]} 16. Rfe1 {[%clk 0:02:02]}  Be6 {[%clk 0:02:19]} 17. Qc3+ {[%clk 0:01:54]}  Kg8 {[%clk 0:02:16]} 18. Rad1 {[%clk 0:01:53]}  a5 {[%clk 0:02:13]} 19. h4 {[%clk 0:01:45]}  Rfb8 {[%clk 0:02:04]} 20. Rb1 {[%clk 0:01:10]}  Ra7 {[%clk 0:01:49]} 21. Bf3 {[%clk 0:00:55]}  Qb4 {[%clk 0:01:29]} 22. Qe3 {[%clk 0:00:45]}  c5 {[%clk 0:01:24]} 23. e5 {[%clk 0:00:43]}  Bf5 {[%clk 0:01:19]} 24. Rbd1 {[%clk 0:00:41]}  Rd7 {[%clk 0:01:06]} 25. Bc6 {[%clk 0:00:34]}  Rdd8 {[%clk 0:01:03]} 26. h5 {[%clk 0:00:29]}  Qb6 {[%clk 0:01:02]} 27. Bf3 {[%clk 0:00:25]}  a4 {[%clk 0:00:49]} 28. bxa4 {[%clk 0:00:26]}  Qb2 {[%clk 0:00:45]} 29. exd6 {[%clk 0:00:24]}  exd6 {[%clk 0:00:43]} 30. h6 {[%clk 0:00:24]}  Be6 {[%clk 0:00:34]} 31. Bd5 {[%clk 0:00:24]}  Bxd5 {[%clk 0:00:26]} 32. Rxd5 {[%clk 0:00:21]}  Qb4 {[%clk 0:00:18]} 33. Red1 {[%clk 0:00:18]}  Qxa4 {[%clk 0:00:18]} 34. Qc3 {[%clk 0:00:18]}  f6 {[%clk 0:00:15]} 35. Qxf6 {[%clk 0:00:19]}  Rd7 {[%clk 0:00:16]} 36. Qe6+ {[%clk 0:00:18]}  Rf7 {[%clk 0:00:15]} 37. Rxd6 {[%clk 0:00:17]}  Rf8 {[%clk 0:00:16]} 38. Rd7 {[%clk 0:00:15]}  Qxa2 {[%clk 0:00:16]} 39. Rxf7 {[%clk 0:00:14]}  Rxf7 {[%clk 0:00:15]} 40. Rd8# {[%clk 0:00:15]} 1-0


[Site "https://www.chess.com"]